Workbook

Sheet Uputstvo
A2: УПУТСТВО О НАЧИНУ РАДА СА ПОДАЦИМА
A4: Овај модел Одлуке о завршном рачуну буџета општине за 2015. годину у електронском облику састоји се од 6 радних табела. Имајући у виду да Модел Одлуке о завршном рачуну буџета није прописан, у пракси се могу јавити одступања од нашег предложеног модела. Такође ће се разликовати број функција и глава по појединим општинама, па смо у том циљу дали могућност подешавања текста у Основном моделу на начин како је описан у овом упутству.
A9: Табела са називом "stampa" је Основни модел Одлуке за штампу, а осталих 5 табела су помоћне, које служе за попуњавање табела у Основом моделу. Називи помоћних табела одређени су тако да означавају део основне табеле који се попуњава помоћу тих помоћних табела (помоћна табела за: члан 3, члан 4, члан 8, члан 9. и члан 10. основног модела).
A11: Помоћна табела "član 3" служи за попуњавање података о оствареном буџетском суфициту, као и коригованом суфициту/дефициту из Биланса прихода и расхода (Образац 2). Табела има поља са формулама (на ред. броју 3. 4. и 5), која су заштићена и у која се не могу уносити подаци. Остала поља се попуњавају подацима.
A15: Помоћна табела "član 4" служи за попуњавање остварених података за рачун прихода и примања и расхода и издатака,као и за рачун финансирања. Подаци се уносе у колоне 3. и 4. Унети подаци у ову тавелу аутоматски се уписују на одговарајуће место у Основни модел, који је предложен у табели "stampa".
A18: Помоћна табела "član 8" служи за унос података о текућим приходима и примањима општине у члану 8. Основног модела. Подаци се у овој помоћној табели уносе у колоне 3. и 4, и то у бела поља. У осталим пољима се налазе формуле и та поља су заштићена.
A21: Помоћна табела "član 9" служи за унос података о текућим расходима и издацима буџета општине у члану 9. Основног модела. Подаци се у овој помоћној табели уносе у колоне 3. и 4, и то у бела поља. У осталим пољима се налазе формуле и та поља су заштићена.
A24: Помоћна табела "član 10" служи за унос података о планираним и извршеним апропријацијама по буџетским корисницима - Посебни део одлуке о завршном рачуну буџета општине за 2014. годину.
A27: Основни модел који се налази у табели "stampa" представља наш предложени модел Одлуке о завршном рачуну буџета општине за 2014. годину. У овој табели се преписују подаци из помоћних табела које смо претходно навели. Због специфичности буџета општина, које ће довести до одступања од овог модела, поља у овој табели нису заштићена, што омогућује унос података у свим пољима табеле. Треба посебно обратити пажњу на део табеле у који се уписују подаци из помоћних табела и не уносити податке у тај део табеле Основног модела, јер ће се уносом података обрисати формуле које везују поља из Основног модела са пољима из помоћних табела. Посебно скрећемо пажњу на члан 10. Основног модела у којем је предложена анализа извршења капиталних пројеката у 2014. години. Наиме, планирање капиталних пројеката у општем делу буџета локалних власти је новина од 2013. године, па је неопходно и у Одлуци о завршном рачуну буџета општине за 2014. годину да се изврши анализа извршења пројеката који су планирани у општем делу буџета за 2014. годину.
A40: Скрећемо пажњу да је штампа Основног модела подешена за папир формата А4. Уколико се додају нови редови, или бришу постојећи, може доћи до померања текста, па је пре штампе неопходно извршити подешавање формата. Такође, треба обратити пажњу приликом додавања нових података да се изврши подешавање и збирних података.

Sheet član 3
A1: 1. Укупно остварени приходи и примања по основу продаје нефинансијске имовине | B1: 374096
A2: 2. Укупно извршени расходи и издаци за набавку нефинансијске имовине | B2: 372402
A3: 3. Вишак прихода – буџетски суфицит (ред. бр. 1 – ред. бр. 2) | B3: =B1-B2 -> 1694
A4: Кориговање вишка прихода – буџетски суфицит:
A5: – део нераспоређеног вишка прихода и примања из ранијих година који је коришћен за покриће расхода и издатака текуће године
A6: – део пренетих неутрошених средстава из ранијих година коришћен за покриће расхода и издатака текуће године
A7: – износ расхода и издатака за нефинансијску имовину, финансираних из кредита
A8: – износ приватизационих примања коришћен за покриће расхода и издатака текуће године | B8: 6720
A9: – утрошена средства текућих прихода и примања од продаје нефинансијске имовине за отплату обавеза по кредитима | B9: 3343
A10: – утрошена средства текућих прихода и примања од продаје нефинансијске имовине за набавку финансијске имовине
A11: 4. Кориговани вишак прихода – суфицит | B11: =+B3+B5+B6+B7+B8-B9-B10 -> 5071
A12: 5.Вишак прихода и примања – суфицит (за пренос у наредну годину) | B12: =+B13+B14 -> 5071
A13: - Део вишка прихода и примања наменски опредељен за наредну годину
A14: - Нераспоређени део вишка прихода и примања за пренос у наредну годину | B14: 5071

Sheet član 4
B1: Економска класификација | C1: Планирано | D1: Остварено | E1: % Остварено/ План
A3: 1 | B3: 2 | C3: 3 | D3: 4 | E3: 5
A4: А. РАЧУН ПРИХОДА И ПРИМАЊА, РАСХОДА И ИЗДАТАКА БУЏЕТА ОПШТИНЕ
A5: I. УКУПНИ ПРИХОДИ И ПРИМАЊА | C5: =C6+C17 -> 0 | D5: =D6+D17 -> 359109 | E5: =IF(OR(ISBLANK(C5),C5=0),"",D5/C5) -> 
A6: Текући приходи: | B6: 7 | C6: =C7+C11+C14+C15+C16+C18 -> 0 | D6: =D7+D11+D14+D15+D16+D18 -> 359109 | E6: =IF(OR(ISBLANK(C6),C6=0),"",D6/C6) -> 
A7: 1. Порески приходи | B7: 71 | C7: =SUM(C8:C10) -> 0 | D7: =SUM(D8:D10) -> 139728
A8: 1.1. Порез на доходак, добит и капиталне добитке | B8: 711 | D8: 93059
A9: 1.2. Порез на добра и услуге | B9: 714
A10: 1.3. Остали порески приходи | B10: 712+713+716+719 | D10: 46669
A11: 2. Непорески приходи, од чега: | B11: 74 | C11: =SUM(C12:C13) -> 0 | D11: =SUM(D12:D13) -> 7076
A12: – наплаћене камате | B12: 7411 | D12: 353
A13: – накнада за коришћење простора и грађевинског земљишта | B13: 7415 | D13: 6723
A14: 3. Меморандумске ставке за рефундацију расхода из претходне године | B14: 772 | D14: 299
A15: 4. Донације | B15: 731+732
A16: 5. Трансфери | B16: 733 | D16: 212006
A17: Примања од продаје нефинанисјске имовине | B17: 8
A18: Сопствени приходи буџетских корисника
A19: II. УКУПНИ РАСХОДИ И ИЗДАЦИ | C19: =C20+C29 -> 0 | D19: =D20+D29 -> 364828
A20: Текући расходи: | B20: 4 | C20: =SUM(C21:C28) -> 0 | D20: =SUM(D21:D28) -> 340595
A21: 1. Расходи за запослене | B21: 41 | D21: 96712
A22: 2. Коришћење услуга и роба | B22: 42 | D22: 134971
A23: 3. Отплата камата | B23: 44 | D23: 696
A24: 4. Субвенције | B24: 45 | D24: 17411
A25: 5. Издаци за социјалну заштиту | B25: 47 | D25: 29472
A26: 6. Остали расходи | B26: 48+49 | D26: =19499 -> 19499
A27: 7. Текући трансфери и дотације | B27: 4631+4641 | D27: =27982+11556 -> 39538
A28: 8. Капитални трансфери и дотације | B28: 4632+4642 | D28: =1016+1280 -> 2296
A29: Издаци за нефинансијску имовину | B29: 5 | D29: 24233
A30: III. БУЏЕТСКИ СУФИЦИТ (БУЏЕТСКИ ДЕФИЦИТ) (I–II) | B30: (7+8) – (4+5) | C30: =C5-C19 -> 0 | D30: =D5-D19 -> -5719
A31: IV. Издаци за набавку финансијске имовине | B31: 62
A32: V. Отплата главнице | B32: 61 | C32: =C33+C36 -> 0 | D32: =D33+D36 -> 3343
A33: 1. Отплата главнице домаћим кредиторима | B33: 611 | C33: =SUM(C34:C35) -> 0 | D33: =SUM(D34:D35) -> 3343
A34: 1.1. Отплата главнице домаћим јавним финансијским институцијама и пословним банкама | B34: 6113 + 6114 | D34: 3343
A35: 1.2. Отплата главнице осталим кредиторима | B35: 6111 + 6112 + 6115 + 6116 + 6117 + 6118 + 6119
A36: 2. Отплата главнице страним кредиторима | B36: 612
A37: Б. УКУПНИ ФИСКАЛНИ ДЕФИЦИТ (III-IV-V) | C37: =C30-C31-C32 -> 0 | D37: =D30-D31-D32 -> -9062
A38: В. РАЧУН ФИНАНСИРАЊА
A39: VI. Примања по основу продаје финансијске имовине | B39: 92
A40: VII. Примања од задуживања | B40: 91 | C40: =C41+C44 -> 0 | D40: =D41+D44 -> 0
A41: 1. Примања од домаћих задуживања | B41: 911 | C41: =SUM(C42:C43) -> 0 | D41: =SUM(D42:D43) -> 0
A42: 1.1. Задуживање код јавних финансијских институција и пословних банака | B42: 9113 + 9114
A43: 1.2. Задуживање код осталих кредитора | B43: 9111 + 9112 + 9115 + 9116 + 9117 + 9118 + 9119
A44: 2. Примања од иностраног задуживања | B44: 912
A45: VIII. НЕТО ФИНАНСИРАЊЕ (IV+V) | C45: =C31+C32 -> 0 | D45: =D31+D32 -> 3343

Sheet član 8
A1: Економска класификација | B1: Врста прихода | C1: План | D1: Остварено | E1: % Остварено /План | F1: Разлика
A2: 1 | B2: 2 | C2: 3 | D2: 4 | E2: 5 | F2: 6
A3: 711 | B3: Порез на доходак, добит и капиталне добитке | C3: =SUM(C4:C9) -> 93317 | D3: =SUM(D4:D9) -> 5555 | E3: =IF(OR(ISBLANK(C3),C3=0),"",D3/C3) -> 5.95% | F3: =D3-C3 -> -87762
A4: 711110 | B4: – порез на зараде | C4: 73359 | D4: 5555 | E4: =IF(OR(ISBLANK(C4),C4=0),"",D4/C4) -> 7.57% | F4: =D4-C4 -> -67804
A5: 711120 | B5: – порез на приходе од самосталних делатности | C5: 10173 | E5: 0.00% | F5: -10173
A6: 711143 | B6: – порез на приходе од непокретности | C6: 0 | F6: 0
A7: 711146 | B7: – порез на приходе од пољопривреде и шумарства | C7: -36 | E7: 0.00% | F7: 36
A8: 711147 | B8: – порез на земљиште | C8: 72 | E8: 0.00% | F8: -72
A9: 711190 | B9: – порез на друге приходе | C9: 9749 | E9: 0.00% | F9: -9749
A10: 713 | B10: Порез на имовину | C10: =SUM(C11:C13) -> 31655 | D10: =SUM(D11:D13) -> 0 | E10: 0.00% | F10: -31655
A11: 713120 | B11: – порез на имовину | C11: 26997 | E11: 0.00% | F11: -26997
A12: 713310 | B12: – порез на наслеђе и поклон | C12: 251 | E12: 0.00% | F12: -251
A13: 713420 | B13: – порез на капиталне трансакције | C13: 4407 | E13: 0.00% | F13: -4407
A14: 714 | B14: Порез на добра и услуге | C14: =SUM(C15:C20) -> 10424 | D14: =SUM(D15:D20) -> 0 | E14: 0.00% | F14: -10424
A15: 714440 | B15: – средства за противпожарну заштиту | C15: 0 | F15: 0
A16: 714513 | B16: – комунална такса за држање моторних возила | C16: 7986 | E16: 0.00% | F16: -7986
A17: 714514 | B17: – годишња накнада за моторна возила, тракторе и прикључна возила | C17: 2 | E17: 0.00% | F17: -2
A18: 714552 | B18: – боравишна такса | C18: 0 | E18: =IF(OR(ISBLANK(C18),C18=0),"",D18/C18) ->  | F18: 0
A19: 714562 | B19: – посебна накнада за заштиту и унапређивање животне средине | C19: 2436 | E19: 0.00% | F19: =D19-C19 -> -2436
A20: 714570 | B20: – општинске и градске комуналне таксе | F20: 0
A21: 716 | B21: Други порези | C21: =C22 -> 0 | D21: =D22 -> 0 | F21: 0
A22: 716111 | B22: – комунална такса за истицање фирме на пословном простору | F22: 0
A23: 730 | B23: Донације и трансфери | C23: =SUM(C24:C25) -> 0 | D23: =SUM(D24:D25) -> 0 | F23: 0
A24: 731000 | B24: Донације од иностраних држава | F24: 0
A25: 732000 | B25: Донације од међународних организација | F25: 0
A26: 733 | B26: Трансфери од других нивоа власти (грантови) | C26: =C27 -> 0 | D26: =D27 -> 0 | F26: 0
A27: 733150 | B27: – текући трансфери од других нивоа власти у корист општине | F27: 0
A28: 741 | B28: Приходи од имовине | C28: =SUM(C29:C31) -> 0 | D28: =SUM(D29:D31) -> 0 | F28: 0
A29: 741150 | B29: – камате на средства консолидованог рачуна трезора општине | F29: 0
A30: 741510 | B30: – накнада за коришћење природних добара | E30: =IF(OR(ISBLANK(C30),C30=0),"",D30/C30) ->  | F30: 0
A31: 741534 | B31: – накнаде за коришћење грађевинског земљишта | F31: 0
A32: 742 | B32: Приходи од продаје добара и услуга | C32: =SUM(C33:C36) -> 0 | D32: =SUM(D33:D36) -> 0 | F32: 0
A33: 742152 | B33: – приходи од давања у закуп, односно на коришћење непокретности у државној својини које кориснте општине и индиректни корисници њиховог буџета | F33: 0
A34: 742251 | B34: – општинске административне таксе | F34: =D34-C34 -> 0
A35: 742253 | B35: – накнада за уређивање грађевинског земљишта | F35: 0
A36: 742351 | B36: – приходи које својом делатношћу остваре органи и организације општине | F36: 0
A37: 743 | B37: Новчане казне и одузета имовинска корист | C37: =C38 -> 0 | D37: =D38 -> 0 | F37: 0
A38: 743351 | B38: – приходи од новчаних казни изречених у прекршајном поступку за прекршаје прописане актом скупштине општине, као и одузета имовинска корист у том поступку | F38: 0
A39: 745 | B39: Мешовити и неодређени приходи | C39: =C40 -> 0 | D39: =D40 -> 0 | F39: 0
A40: 745150 | B40: – мешовити и неодређени приходи у корист општине | F40: 0
A41: 812 | B41: Примања од продаје покретне имовине | C41: =C42 -> 0 | D41: =D42 -> 0 | F41: 0
A42: 812151 | B42: Примања од продаје покретних ствари у корист нивоа општине | F42: 0
B43: Сопствени приходи буџетских корисника | F43: 0
A44: 742 | B44: Приходи од продаје добара и услуга | C44: =SUM(C45:C46) -> 0 | D44: =SUM(D45:D46) -> 0 | E44: =IF(OR(ISBLANK(C44),C44=0),"",D44/C44) ->  | F44: =D44-C44 -> 0
A45: 742150 | B45: – приходи од продаје добара и услуга или закупа од стране тржишних организација у корист нивоа општине | F45: 0
A46: 742372 | B46: – приходи индиректних корисника буџета локалне самоуправе који се остварују додатним активностима | F46: 0
A47: УКУПНИ ПРИХОДИ И ПРИМАЊА: | C47: =C3+C10+C14+C21+C23+C26+C28+C32+C37+C39+C41+C44 -> 135396 | D47: =D3+D10+D14+D21+D23+D26+D28+D32+D37+D39+D41+D44 -> 5555 | E47: 4.10% | F47: -129841

Sheet član 9
B1: О П И С | C1: План | D1: Извршење | E1: % Извршено /План | F1: Разлика
A2: 1 | B2: 2 | C2: 3 | D2: 4 | E2: 5 | F2: 6
A3: 41 | B3: Расходи за запослене | C3: =SUM(C4:C11) -> 0 | D3: =SUM(D4:D11) -> 96712 | E3: =IF(OR(ISBLANK(C3),C3=0),"", D3/C3) ->  | F3: =D3-C3 -> 96712
A4: 411 | B4: Плате, додаци и накнаде запослених | D4: 75200 | E4: =IF(OR(ISBLANK(C4),C4=0),"", D4/C4) ->  | F4: =D4-C4 -> 75200
A5: 412 | B5: Социјални доприноси на терет послодавца | D5: 13391 | E5: =IF(OR(ISBLANK(C5),C5=0),"", D5/C5) ->  | F5: =D5-C5 -> 13391
A6: 413 | B6: Накнаде у натури | D6: 3077 | F6: 3077
A7: 414 | B7: Социјална давања запосленима | D7: 538 | F7: =D7-C7 -> 538
A8: 415 | B8: Накнада трошкова за запослене | D8: 3683 | F8: 3683
A9: 416 | B9: Награде запосленима и остали посебни расходи | D9: 823 | F9: 823
A10: 417 | B10: Посланички додатак | F10: 0
A11: 418 | B11: Судијски додатак | F11: 0
A12: 42 | B12: Коришћење услуга и роба | C12: =SUM(C13:C18) -> 0 | D12: =SUM(D13:D18) -> 134971 | F12: 134971
A13: 421 | B13: Стални трошкови | D13: 20039 | F13: 20039
A14: 422 | B14: Трошкови путовања | D14: 1693 | F14: 1693
A15: 423 | B15: Услуге по уговору | D15: 32382 | F15: 32382
A16: 424 | B16: Специјализоване услуге | D16: 7315 | F16: 7315
A17: 425 | B17: Текуће поправке и одржавање | D17: 42700 | F17: 42700
A18: 426 | B18: Материјал | D18: 30842 | F18: 30842
A19: 44 | B19: Отплата камата | C19: =SUM(C20:C23) -> 0 | D19: =SUM(D20:D23) -> 643 | F19: 643
A20: 441 | B20: Отплата домаћих камата | F20: 0
A21: 442 | B21: Отплата страних камата | F21: 0
A22: 443 | B22: Отплата камата по гаранцијама | F22: 0
A23: 444 | B23: Пратећи трошкови задуживања | D23: 643 | F23: 643
A24: 45 | B24: Субвенције | C24: =+C25+C26 -> 0 | D24: =+D25+D26 -> 17411 | F24: 17411
A25: 451 | B25: Субвенције јавним нефинансијским предузећима и организацијама | D25: 17411 | E25: =IF(OR(ISBLANK(C25),C25=0),"", D25/C25) ->  | F25: 17411
A26: 454 | B26: Субвенције приватним предузећима | E26: =IF(OR(ISBLANK(C26),C26=0),"", D26/C26) ->  | F26: 0
A27: 46 | B27: Донације, дотације и трансфери | C27: =SUM(C28:C30) -> 0 | D27: =SUM(D28:D30) -> 41834 | F27: 41834
A28: 462 | B28: Дотације међународним организацијама | F28: 0
A29: 463 | B29: Трансфери осталим нивоима власти | D29: 28998 | F29: 28998
A30: 464 | B30: Дотације организацијама обавезног социјалног осигурања | D30: 12836 | F30: 12836
A31: 47 | B31: Социјално осигурање и социјална заштита | C31: =C32 -> 0 | D31: =D32 -> 0 | F31: 0
A32: 472 | B32: Накнаде за социјалну заштиту из буџета | F32: 0
A33: 48 | B33: Остали раходи | C33: =SUM(C34:C38) -> 0 | D33: =SUM(D34:D38) -> 0 | F33: 0
A34: 481 | B34: Дотације невладиним организацијама | F34: 0
A35: 482 | B35: Порези, обавезне таксе, казне и пенали | F35: 0
A36: 483 | B36: Новчане казне и пенали по решењу судова | F36: 0
A37: 484 | B37: Накнада штете за повреде или штету насталу услед елементарних непогода или других природних узрока | F37: 0
A38: 485 | B38: Накнада штете за повреде или штету нанету од стране државних органа | F38: 0
A39: 49 | B39: Резерве | C39: =C40 -> 0 | D39: =D40 -> 0 | F39: 0
A40: 499 | B40: Средства резерве | F40: 0
A41: 51 | B41: Основна средства | C41: =SUM(C42:C46) -> 0 | D41: =SUM(D42:D46) -> 0 | F41: 0
A42: 511 | B42: Зграде и грађевински објекти | F42: 0
A43: 512 | B43: Машине и опрема | E43: =IF(OR(ISBLANK(C43),C43=0),"", D43/C43) ->  | F43: 0
A44: 513 | B44: Остале некретнине и опрема | F44: 0
A45: 514 | B45: Култивисана имовина | F45: 0
A46: 515 | B46: Нематеријална имовина | F46: 0
A47: 54 | B47: Природна имовина | C47: =C48 -> 0 | D47: =D48 -> 0 | F47: 0
A48: 541 | B48: Земљиште | F48: 0
A49: 61 | B49: Отплата главнице | C49: =C50 -> 0 | D49: =D50 -> 0 | F49: 0
A50: 611 | B50: Отплата главнице домаћим кредиторима | F50: 0
A51: 62 | B51: Набавка финансијске имовине | C51: =C52 -> 0 | D51: =D52 -> 0 | F51: 0
A52: 621 | B52: Набавка домаће финансијске имовине | F52: 0
A53: УКУПНИ РАСХОДИ И ИЗДАЦИ: | C53: =C51+C49+C47+C41+C39+C33+C31+C27+C24+C19+C12+C3 -> 0 | D53: =D51+D49+D47+D41+D39+D33+D31+D27+D24+D19+D12+D3 -> 291571 | F53: 291571

Sheet član 10
A1: Раздео | B1: Глава | C1: Функција | D1: Позиција | E1: Економска класификација | F1: Опис | G1: Планирано | H1: Извршено | I1: % Извршено/План | J1: Разлика
A2: 1 | B2: 2 | C2: 3 | D2: 4 | E2: 5 | F2: 6 | G2: 7 | H2: 8 | I2: 9 | J2: 10
A3: 1 | F3: СКУПШТИНА ОПШТИНЕ
C4: 110 | F4: Извршни и законодавни органи, финансијски и фискални послови и спољни послови
D5: 1 | E5: 411 | F5: Плате, додаци и накнаде запослених | I5: =IF(OR(ISBLANK(G5),G5=0),"",H5/G5) ->  | J5: =H5-G5 -> 0
D6: 2 | E6: 412 | F6: Социјални доприноси на терет послодавца | I6: =IF(OR(ISBLANK(G6),G6=0),"",H6/G6) ->  | J6: 0
D7: 3 | E7: 413 | F7: Накнаде у натури | J7: 0
D8: 4 | E8: 414 | F8: Социјална давања запосленима | J8: 0
D9: 5 | E9: 415 | F9: Накнаде трошкова за запослене | J9: 0
D10: 6 | E10: 416 | F10: Награде запосленима и остали посебни расходи | J10: 0
D11: 7 | E11: 421 | F11: Стални трошкови | J11: 0
D12: 8 | E12: 422 | F12: Трошкови путовања – средства ове апропријације користиће се за: – трошкове путовања функционера – трошкове путовања одборника | J12: 0
D13: 9 | E13: 423 | F13: Услуге по уговору* | J13: 0
D14: 10 | E14: 425 | F14: Текуће поправке и одржавање | J14: 0
D15: 11 | E15: 426 | F15: Материјал | J15: 0
D16: 12 | E16: 482 | F16: Порези, обавезне таксе и казне | J16: 0
F17: Извори финансирања за функцију 110:
E18: 01 | F18: Приходи из буџета | J18: 0
E19: 04 | F19: Сопствени приходи буџетских корисника | J19: 0
E20: 05 | F20: Донације од иностраних земаља | J20: 0
E21: 06 | F21: Донације од међународних организација | J21: 0
E22: 07 | F22: Трансфери од других нивоа власти | J22: 0
E23: 08 | F23: Добровољни трансфери од физичких и правних лица | J23: 0
E24: 09 | F24: Примања од продаје нефинансијске имовине | J24: 0
E25: 10 | F25: Примања од домаћих задуживања | J25: 0
E26: 11 | F26: Примања од иностраних задуживања | J26: 0
E27: 12 | F27: Примања од отплате датих кредита и продаје финансијске имовине | J27: 0
E28: 13 | F28: Нераспоређени вишак прихода из ранијих година | J28: 0
E29: 14 | F29: Неутрошена средства од приватизације из ранијих година | J29: 0
E30: 15 | F30: Неутрошена средства донација из ранијих година | J30: 0
F31: Укупно за функцију 110: | G31: =SUM(G18:G30) -> 0 | H31: =SUM(H18:H30) -> 0 | J31: 0
F32: Извори финансирања за раздео 1:
E33: 01 | F33: Приходи из буџета | G33: =G18 -> 0 | H33: =H18 -> 0 | I33: =IF(OR(ISBLANK(G33),G33=0),"",H33/G33) ->  | J33: =H33-G33 -> 0
E34: 04 | F34: Сопствени приходи буџетских корисника | G34: =G19 -> 0 | H34: 0 | J34: 0
E35: 05 | F35: Донације од иностраних земаља | G35: 0 | H35: 0 | J35: 0
E36: 06 | F36: Донације од међународних организација | G36: 0 | H36: 0 | J36: 0
E37: 07 | F37: Трансфери од других нивоа власти | G37: 0 | H37: 0 | J37: 0
E38: 08 | F38: Добровољни трансфери од физичких и правних лица | G38: 0 | H38: 0 | J38: 0
E39: 09 | F39: Примања од продаје нефинансијске имовине | G39: 0 | H39: 0 | J39: 0
E40: 10 | F40: Примања од домаћих задуживања | G40: 0 | H40: 0 | J40: 0
E41: 11 | F41: Примања од иностраних задуживања | G41: 0 | H41: 0 | J41: 0
E42: 12 | F42: Примања од отплате датих кредита и продаје финансијске имовине | G42: 0 | H42: 0 | J42: 0
E43: 13 | F43: Нераспоређени вишак прихода из ранијих година | G43: 0 | H43: 0 | J43: 0
E44: 14 | F44: Неутрошена средства од приватизације из ранијих година | G44: 0 | H44: 0 | J44: 0
E45: 15 | F45: Неутрошена средства донација из ранијих година | G45: 0 | H45: 0 | J45: 0
F46: Укупно за раздео 1: | G46: =G31 -> 0 | H46: =H31 -> 0 | I46: =IF(OR(ISBLANK(G46),G46=0),"",H46/G46) ->  | J46: =H46-G46 -> 0
A47: 2 | F47: ПРЕДСЕДНИК ОПШТИНЕ И ОПШТИНСКО ВЕЋЕ
C48: 110 | F48: Извршни и законодавни органи, финансијски и фискални послови и спољни послови
D49: 13 | E49: 411 | F49: Плате, додаци и накнаде запослених | J49: 0
D50: 14 | E50: 412 | F50: Социјални доприноси на терет послодавца | J50: 0
D51: 15 | E51: 413 | F51: Накнаде у натури | J51: 0
D52: 16 | E52: 414 | F52: Социјална давања запосленима | J52: 0
D53: 17 | E53: 415 | F53: Накнаде трошкова за запослене | J53: 0
D54: 18 | E54: 416 | F54: Награде запосленима и остали посебни расходи | J54: 0
D55: 19 | E55: 421 | F55: Стални трошкови | J55: 0
D56: 20 | E56: 422 | F56: Трошкови путовања | J56: 0
D57: 21 | E57: 423 | F57: Услуге по уговору | J57: 0
D58: 22 | E58: 425 | F58: Текуће поправке и одржавање | J58: 0
D59: 23 | E59: 426 | F59: Материјал | J59: 0
D60: 24 | E60: 482 | F60: Порези, обавезне таксе, казне и пенали – новчане казне по решењу суда и судских тела, вансудска поравнања | J60: =H60-G60 -> 0
F61: Извори финансирања за функцију 110:
E62: 01 | F62: Приходи из буџета | J62: =H62-G62 -> 0
E63: 04 | F63: Сопствени приходи буџетских корисника | J63: 0
E64: 05 | F64: Донације од иностраних земаља | J64: 0
E65: 06 | F65: Донације од међународних организација | J65: 0
E66: 07 | F66: Трансфери од других нивоа власти | J66: 0
E67: 08 | F67: Добровољни трансфери од физичких и правних лица | J67: 0
E68: 09 | F68: Примања од продаје нефинансијске имовине | J68: 0
E69: 10 | F69: Примања од домаћих задуживања | J69: 0
E70: 11 | F70: Примања од иностраних задуживања | J70: 0
E71: 12 | F71: Примања од отплате датих кредита и продаје финансијске имовине | J71: 0
E72: 13 | F72: Нераспоређени вишак прихода из ранијих година | J72: 0
E73: 14 | F73: Неутрошена средства од приватизације из ранијих година | J73: 0
E74: 15 | F74: Неутрошена средства донација из ранијих година | J74: 0
F75: Укупно за функцију 110: | G75: =SUM(G62:G74) -> 0 | H75: =SUM(H62:H74) -> 0 | J75: =H75-G75 -> 0
F76: Извори финансирања за раздео 2:
E77: 01 | F77: Приходи из буџета | G77: =G62 -> 0 | H77: =H62 -> 0 | I77: =IF(OR(ISBLANK(G77),G77=0),"",H77/G77) ->  | J77: =H77-G77 -> 0
E78: 04 | F78: Сопствени приходи буџетских корисника | G78: =G63 -> 0 | H78: 0 | J78: 0
E79: 05 | F79: Донације од иностраних земаља | G79: 0 | H79: 0 | J79: 0
E80: 06 | F80: Донације од међународних организација | G80: 0 | H80: 0 | J80: 0
E81: 07 | F81: Трансфери од других нивоа власти | G81: 0 | H81: 0 | J81: 0
E82: 08 | F82: Добровољни трансфери од физичких и правних лица | G82: 0 | H82: 0 | J82: 0
E83: 09 | F83: Примања од продаје нефинансијске имовине | G83: 0 | H83: 0 | J83: 0
E84: 10 | F84: Примања од домаћих задуживања | G84: 0 | H84: 0 | J84: 0
E85: 11 | F85: Примања од иностраних задуживања | G85: 0 | H85: 0 | J85: 0
E86: 12 | F86: Примања од отплате датих кредита и продаје финансијске имовине | G86: 0 | H86: 0 | J86: 0
E87: 13 | F87: Нераспоређени вишак прихода из ранијих година | G87: 0 | H87: 0 | J87: 0
E88: 14 | F88: Неутрошена средства од приватизације из ранијих година | G88: 0 | H88: 0 | J88: 0
E89: 15 | F89: Неутрошена средства донација из ранијих година | G89: 0 | H89: 0 | J89: 0
F90: Укупно за раздео 2: | G90: =SUM(G77:G89) -> 0 | H90: =SUM(H77:H89) -> 0 | I90: =IF(OR(ISBLANK(G90),G90=0),"",H90/G90) ->  | J90: =H90-G90 -> 0
A91: 3 | B91: 3.1. | C91: 130 | F91: ОПШТИНСКА УПРАВА Опште услуге
D92: 25 | E92: 411 | F92: Плате, додаци и накнаде запослених | J92: =H92-G92 -> 0
D93: 26 | E93: 412 | F93: Социјални доприноси на терет послодавца | J93: 0
D94: 27 | E94: 413 | F94: Накнаде у натури | J94: 0
D95: 28 | E95: 414 | F95: Социјална давања запосленима | J95: 0
D96: 29 | E96: 415 | F96: Накнаде трошкова за запослене | J96: 0
D97: 30 | E97: 416 | F97: Награде запосленима и остали посебни расходи | J97: 0
D98: 31 | E98: 421 | F98: Стални трошкови | J98: 0
D99: 32 | E99: 422 | F99: Трошкови путовања | J99: 0
D100: 33 | E100: 423 | F100: Услуге по уговору | J100: 0
D101: 34 | E101: 424 | F101: Специјализоване услуге: – услуге анализе – просторно планирање – мртвозорство | J101: 0
D102: 35 | E102: 425 | F102: Текуће поправке и одржавање | J102: 0
D103: 36 | E103: 426 | F103: Материјал | J103: 0
D104: 37 | E104: 451 | F104: Субвенције јавним нефинансијским предузећима и организацијама | J104: 0
D105: 38 | E105: 465 | F105: Остале дотације и трансфери | J105: 0
D106: 39 | E106: 472 | F106: Накнаде за социјалну заштиту из буџета | J106: 0
D107: 40 | E107: 481 | F107: Дотације невладиним организацијама | J107: 0
D108: 41 | E108: 482 | F108: Порези, обавезне таксе, казне и пенали | J108: 0
D109: 42 | E109: 483 | F109: Новчане казне и пенали по решењу судова | J109: 0
D110: 43 | E110: 499 | F110: Средства резерве: Ова апропријација обухвата средства намењена за: – сталну буџетску резерву – текућу буџетску резерву | J110: 0
D111: 44 | E111: 511 | F111: Зграде и грађевински објекти | J111: 0
D112: 45 | E112: 512 | F112: Машине и опрема | J112: 0
D113: 46 | E113: 513 | F113: Остала основна средства | J113: 0
D114: 47 | E114: 621 | F114: Набавка домаће финансијске имовине | J114: 0
F115: Извори финансирања за функцију 130:
E116: 01 | F116: Приходи из буџета | I116: =IF(OR(ISBLANK(G116),G116=0),"",H116/G116) ->  | J116: =H116-G116 -> 0
E117: 04 | F117: Сопствени приходи буџетских корисника | J117: 0
E118: 05 | F118: Донације од иностраних земаља | J118: 0
E119: 06 | F119: Донације од међународних организација | J119: 0
E120: 07 | F120: Трансфери од других нивоа власти | J120: 0
E121: 08 | F121: Добровољни трансфери од физичких и правних лица | J121: 0
E122: 09 | F122: Примања од продаје нефинансијске имовине | J122: 0
E123: 10 | F123: Примања од домаћих задуживања | J123: 0
E124: 11 | F124: Примања од иностраних задуживања | J124: 0
E125: 12 | F125: Примања од отплате датих кредита и продаје финансијске имовине | J125: 0
E126: 13 | F126: Нераспоређени вишак прихода из ранијих година | J126: 0
E127: 14 | F127: Неутрошена средства од приватизације из ранијих година | J127: 0
E128: 15 | F128: Неутрошена средства донација из ранијих година | J128: 0
F129: Укупно за функцију 130: | G129: =SUM(G116:G128) -> 0 | H129: =SUM(H116:H128) -> 0 | I129: =IF(OR(ISBLANK(G129),G129=0),"",H129/G129) ->  | J129: =H129-G129 -> 0
C130: 170 | F130: Трансакције јавног дуга
D131: 48 | E131: 441 | F131: Отплата домаћих камата | J131: =H131-G131 -> 0
D132: 49 | E132: 444 | F132: Пратећи трошкови задуживања | J132: =H132-G132 -> 0
D133: 50 | E133: 611 | F133: Отплата главнице домаћим кредиторима | J133: =H133-G133 -> 0
F134: Извори финансирања за функцију 170:
E135: 01 | F135: Приходи из буџета | J135: =H135-G135 -> 0
E136: 04 | F136: Сопствени приходи буџетских корисника | J136: 0
E137: 05 | F137: Донације од иностраних земаља | J137: 0
E138: 06 | F138: Донације од међународних организација | J138: 0
E139: 07 | F139: Трансфери од других нивоа власти | J139: 0
E140: 08 | F140: Добровољни трансфери од физичких и правних лица | J140: 0
E141: 09 | F141: Примања од продаје нефинансијске имовине | J141: 0
E142: 10 | F142: Примања од домаћих задуживања | J142: 0
E143: 11 | F143: Примања од иностраних задуживања | J143: 0
E144: 12 | F144: Примања од отплате датих кредита и продаје финансијске имовине | J144: 0
E145: 13 | F145: Нераспоређени вишак прихода из ранијих година | J145: 0
E146: 14 | F146: Неутрошена средства од приватизације из ранијих година | J146: 0
E147: 15 | F147: Неутрошена средства донација из ранијих година | J147: 0
F148: Укупно за функцију 170 | G148: =SUM(G135:G147) -> 0 | H148: =SUM(H135:H147) -> 0 | J148: =H148-G148 -> 0
F149: Извори финансирања за главу 3.1.:
E150: 01 | F150: Приходи из буџета | G150: =G135+G116 -> 0 | H150: =H135+H116 -> 0 | I150: =IF(OR(ISBLANK(G150),G150=0),"",H150/G150) ->  | J150: =H150-G150 -> 0
E151: 04 | F151: Сопствени приходи буџетских корисника | G151: =G136+G117 -> 0 | H151: 0 | J151: 0
E152: 05 | F152: Донације од иностраних земаља | G152: 0 | H152: 0 | J152: 0
E153: 06 | F153: Донације од међународних организација | G153: 0 | H153: 0 | J153: 0
E154: 07 | F154: Трансфери од других нивоа власти | G154: 0 | H154: 0 | J154: 0
E155: 08 | F155: Добровољни трансфери од физичких и правних лица | G155: 0 | H155: 0 | J155: 0
E156: 09 | F156: Примања од продаје нефинансијске имовине | G156: 0 | H156: 0 | J156: 0
E157: 10 | F157: Примања од домаћих задуживања | G157: 0 | H157: 0 | J157: 0
E158: 11 | F158: Примања од иностраних задуживања | G158: 0 | H158: 0 | J158: 0
E159: 12 | F159: Примања од отплате датих кредита и продаје финансијске имовине | G159: 0 | H159: 0 | J159: 0
E160: 13 | F160: Нераспоређени вишак прихода из ранијих година | G160: 0 | H160: 0 | J160: 0
E161: 14 | F161: Неутрошена средства од приватизације из ранијих година | G161: 0 | H161: 0 | J161: 0
E162: 15 | F162: Неутрошена средства донација из ранијих година | G162: 0 | H162: 0 | J162: 0
F163: Укупно за главу 3.1: | G163: =SUM(G150:G162) -> 0 | H163: =SUM(H150:H162) -> 0 | J163: =H163-G163 -> 0
B164: 3.2. | F164: МЕСНЕ ЗАЈЕДНИЦЕ
C165: 160 | F165: Опште јавне услуге некласификоване на другом месту
D166: 51 | E166: 411 | F166: Плате, додаци и накнаде запослених | J166: =H166-G166 -> 0
D167: 52 | E167: 412 | F167: Социјални доприноси на терет послодавца | J167: 0
D168: 53 | E168: 413 | F168: Накнаде у натури | J168: 0
D169: 54 | E169: 414 | F169: Социјална давања запосленима | J169: 0
D170: 55 | E170: 415 | F170: Накнаде трошкова за запослене | J170: 0
D171: 56 | E171: 416 | F171: Награде запосленима и остали посебни расходи | J171: 0
D172: 57 | E172: 421 | F172: Стални трошкови | J172: 0
D173: 58 | E173: 423 | F173: Услуге по уговору | J173: 0
D174: 59 | E174: 425 | F174: Текуће поправке и одржавање | J174: 0
D175: 60 | E175: 426 | F175: Материјал | J175: 0
D176: 61 | E176: 511 | F176: Зграде и грађевински објекти | J176: 0
D177: 62 | E177: 512 | F177: Машине и опрема | J177: 0
F178: Извори финансирања за функцију 160:
E179: 01 | F179: Приходи из буџета | J179: =H179-G179 -> 0
E180: 04 | F180: Сопствени приходи буџетских корисника | J180: 0
E181: 05 | F181: Донације од иностраних земаља | J181: 0
E182: 06 | F182: Донације од међународних организација | J182: 0
E183: 07 | F183: Трансфери од других нивоа власти | J183: 0
E184: 08 | F184: Добровољни трансфери од физичких и правних лица | J184: 0
E185: 09 | F185: Примања од продаје нефинансијске имовине | J185: 0
E186: 10 | F186: Примања од домаћих задуживања | J186: 0
E187: 11 | F187: Примања од иностраних задуживања | J187: 0
E188: 12 | F188: Примања од отплате датих кредита и продаје финансијске имовине | J188: 0
E189: 13 | F189: Нераспоређени вишак прихода из ранијих година | J189: 0
E190: 14 | F190: Неутрошена средства од приватизације из ранијих година | J190: 0
E191: 15 | F191: Неутрошена средства донација из ранијих година | J191: 0
F192: Укупно за функцију 160: | G192: =SUM(G179:G191) -> 0 | H192: =SUM(H179:H191) -> 0 | J192: =H192-G192 -> 0
F193: Извори финансирања за главу 3.2.:
E194: 01 | F194: Приходи из буџета | G194: =G179 -> 0 | H194: =H179 -> 0 | I194: =IF(OR(ISBLANK(G194),G194=0),"",H194/G194) ->  | J194: =H194-G194 -> 0
E195: 04 | F195: Сопствени приходи буџетских корисника | G195: =G180 -> 0 | H195: 0 | J195: 0
E196: 05 | F196: Донације од иностраних земаља | G196: 0 | H196: 0 | J196: 0
E197: 06 | F197: Донације од међународних организација | G197: 0 | H197: 0 | J197: 0
E198: 07 | F198: Трансфери од других нивоа власти | G198: 0 | H198: 0 | J198: 0
E199: 08 | F199: Добровољни трансфери од физичких и правних лица | G199: 0 | H199: 0 | J199: 0
E200: 09 | F200: Примања од продаје нефинансијске имовине | G200: 0 | H200: 0 | J200: 0
... 449 more rows

Sheet stampa
B3: На основу члана 76. Закона о буџетском систему („Службени гласник РС”, бр. 54/2009, 73/2010, ....., 92/2023 и 94/2024), и члана 40. Статута општине Владимирци („Службени лист града Шапца и општина: Богатић, Владимирци и Коцељева”, бр. 6/2019, 12/2021 и 9/2025), СКУПШТИНА ОПШТИНЕ ВЛАДИМИРЦИ, на седници одржаној дана 14.11.2025. године, донела је
B11: З А К Љ У Ч А К
B12: О УСВАЈАЊУ ИЗВРШЕЊА БУЏЕТА ОПШТИНЕ ВЛАДИМИРЦИ за период 01.01. - 30.06.2025. године
B15: I. ОПШТИ ДЕО
B19: Остварени текући приходи и примања и извршени расходи и издаци буџета општине Владимирци за период 01.01.-30.06. 2022. године, износе у динарима, и то:
B21: I. Укупно остварени текући приходи, примања
B22: (буџетска средства и средства из осталих извора) ...................................................._________________ | AD22: 319,219,257.83
B23: II. Укупно извршени текући расходи и издаци (буџетска средства и
B24: средства из осталих извора) ......................................................................................._________________ | AD24: 291,624,652.15
B25: III. Разлика укупних прихода и примања и укупних расхода и издатака (суфицит) | AD25: =+AD22-AD24 -> 27,594,605.68
B27: IV Укупно извршена пренета неутрошена средства из претходне године - извршени расходи из пренетих неутрошених средстава | AD27: 24,738,131.19
B28: V. Разлика укупних прихода и примања и остварених пренетих неутрошених средстава и укупних расхода и издатака (суфицит) | AD28: =AD25+AD27 -> 52,332,736.87
B30: Утврђени суфицит у периоду 01.01. - 30.06.2025. године из свих извора финансирања утврђен је на следећи начин:
AE33: у динарима
B34: Опис | AG34: Извршено у периоду 01.01. - 30.06.2025.
B35: 1. Укупно остварени приходи и примања по основу продаје нефинансијске имовине (класа 7 + класа 8) | AG35: =AD22 -> 319,219,257.83
B36: 2. Укупно извршени расходи и издаци за набавку нефинансијске имовине (класа 4 + класа 5) | AG36: =AD24-AG43 -> 291,624,652.15
B37: 3. Вишак прихода – буџетски суфицит (ред. бр. 1 – ред. бр. 2) | AG37: =AG35-AG36 -> 27,594,605.68
B38: Кориговање вишка прихода – буџетски суфицит:
B39: – део нераспоређеног вишка прихода и примања из ранијих година који је коришћен за покриће расхода и издатака текуће године (Расходи из извора финансирања 17) | AG39: =AD27-AG40 -> 24,738,131.19
B40: – део пренетих неутрошених средстава из ранијих година коришћен за покриће расхода и издатака текуће године
B41: – износ расхода и издатака за нефинансијску имовину, финансираних из кредита
B42: – износ приватизационих примања коришћен за покриће расхода и издатака текуће године
B43: – утрошена средства текућих прихода и примања од продаје нефинансијске имовине за отплату обавеза по кредитима ( Класа 6)
B44: – утрошена средства текућих прихода и примања од продаје нефинансијске имовине за набавку финансијске имовине
B45: 4. Кориговани вишак прихода – суфицит | AG45: =AG37+AG39+AG40-AG43 -> 52,332,736.87
B48: Буџетски суфицит (дефицит), и укупни фискални резултат буџета у периоду 01.01. - 30.06.2025. године из свих извора финансирања утврђени су:
AF49: у динарима
S50: Економска класифи-кација | T50: Економска класификација | U50: Економска класификација | V50: Економска класификација | W50: Економска класификација | X50: Планирано | Y50: Планирано | Z50: Планирано | AA50: Планирано | AB50: Планирано | AC50: Остварено | AD50: Остварено | AE50: Остварено | AF50: Остварено | AG50: Остварено | AH50: % Остварено/ План | AI50: % Остварено/ Извршено | AJ50: % Остварено/ Извршено | AK50: % Остварено/ Извршено | AL50: % Остварено/ Извршено
B51: 1 | C51: 1 | D51: 1 | E51: 1 | F51: 1 | G51: 1 | H51: 1 | I51: 1 | J51: 1 | K51: 1 | L51: 1 | M51: 1 | N51: 1 | O51: 1 | P51: 1 | Q51: 1 | R51: 1 | S51: 2 | T51: 2 | U51: 2 | V51: 2 | W51: 2 | X51: 3 | Y51: 3 | Z51: 3 | AA51: 3 | AB51: 3 | AC51: 4 | AD51: 4 | AE51: 4 | AF51: 4 | AG51: 4 | AH51: 5 | AI51: 5 | AJ51: 5 | AK51: 5 | AL51: 5
B52: А. РАЧУН ПРИХОДА И ПРИМАЊА, РАСХОДА И ИЗДАТАКА БУЏЕТА ОПШТИНЕ | C52: А. РАЧУН ПРИХОДА И ПРИМАЊА, РАСХОДА И ИЗДАТАКА БУЏЕТА ОПШТИНЕ | D52: А. РАЧУН ПРИХОДА И ПРИМАЊА, РАСХОДА И ИЗДАТАКА БУЏЕТА ОПШТИНЕ | E52: А. РАЧУН ПРИХОДА И ПРИМАЊА, РАСХОДА И ИЗДАТАКА БУЏЕТА ОПШТИНЕ | F52: А. РАЧУН ПРИХОДА И ПРИМАЊА, РАСХОДА И ИЗДАТАКА БУЏЕТА ОПШТИНЕ | G52: А. РАЧУН ПРИХОДА И ПРИМАЊА, РАСХОДА И ИЗДАТАКА БУЏЕТА ОПШТИНЕ | H52: А. РАЧУН ПРИХОДА И ПРИМАЊА, РАСХОДА И ИЗДАТАКА БУЏЕТА ОПШТИНЕ | I52: А. РАЧУН ПРИХОДА И ПРИМАЊА, РАСХОДА И ИЗДАТАКА БУЏЕТА ОПШТИНЕ | J52: А. РАЧУН ПРИХОДА И ПРИМАЊА, РАСХОДА И ИЗДАТАКА БУЏЕТА ОПШТИНЕ | K52: А. РАЧУН ПРИХОДА И ПРИМАЊА, РАСХОДА И ИЗДАТАКА БУЏЕТА ОПШТИНЕ | L52: А. РАЧУН ПРИХОДА И ПРИМАЊА, РАСХОДА И ИЗДАТАКА БУЏЕТА ОПШТИНЕ | M52: А. РАЧУН ПРИХОДА И ПРИМАЊА, РАСХОДА И ИЗДАТАКА БУЏЕТА ОПШТИНЕ | N52: А. РАЧУН ПРИХОДА И ПРИМАЊА, РАСХОДА И ИЗДАТАКА БУЏЕТА ОПШТИНЕ | O52: А. РАЧУН ПРИХОДА И ПРИМАЊА, РАСХОДА И ИЗДАТАКА БУЏЕТА ОПШТИНЕ | P52: А. РАЧУН ПРИХОДА И ПРИМАЊА, РАСХОДА И ИЗДАТАКА БУЏЕТА ОПШТИНЕ | Q52: А. РАЧУН ПРИХОДА И ПРИМАЊА, РАСХОДА И ИЗДАТАКА БУЏЕТА ОПШТИНЕ | R52: А. РАЧУН ПРИХОДА И ПРИМАЊА, РАСХОДА И ИЗДАТАКА БУЏЕТА ОПШТИНЕ
B53: I. УКУПНИ ПРИХОДИ И ПРИМАЊА | C53: I. УКУПНИ ПРИХОДИ И ПРИМАЊА | D53: I. УКУПНИ ПРИХОДИ И ПРИМАЊА | E53: I. УКУПНИ ПРИХОДИ И ПРИМАЊА | F53: I. УКУПНИ ПРИХОДИ И ПРИМАЊА | G53: I. УКУПНИ ПРИХОДИ И ПРИМАЊА | H53: I. УКУПНИ ПРИХОДИ И ПРИМАЊА | I53: I. УКУПНИ ПРИХОДИ И ПРИМАЊА | J53: I. УКУПНИ ПРИХОДИ И ПРИМАЊА | K53: I. УКУПНИ ПРИХОДИ И ПРИМАЊА | L53: I. УКУПНИ ПРИХОДИ И ПРИМАЊА | M53: I. УКУПНИ ПРИХОДИ И ПРИМАЊА | N53: I. УКУПНИ ПРИХОДИ И ПРИМАЊА | O53: I. УКУПНИ ПРИХОДИ И ПРИМАЊА | P53: I. УКУПНИ ПРИХОДИ И ПРИМАЊА | Q53: I. УКУПНИ ПРИХОДИ И ПРИМАЊА | R53: I. УКУПНИ ПРИХОДИ И ПРИМАЊА | S53: 7+8 | X53: =X54+X66 -> 702,967,425.00 | AC53: =AC54+AC66 -> 319,219,257.83 | AH53: =AC53/X53 -> 45.41%
B54: Текући приходи: | C54: Текући приходи: | D54: Текући приходи: | E54: Текући приходи: | F54: Текући приходи: | G54: Текући приходи: | H54: Текући приходи: | I54: Текући приходи: | J54: Текући приходи: | K54: Текући приходи: | L54: Текући приходи: | M54: Текући приходи: | N54: Текући приходи: | O54: Текући приходи: | P54: Текући приходи: | Q54: Текући приходи: | R54: Текући приходи: | S54: 7 | T54: 7 | U54: 7 | V54: 7 | W54: 7 | X54: =X55+X59+X64+X62+X63 -> 698,137,425.00 | AC54: =AC55+AC59+AC64+AC62+AC63+AC65 -> 318,728,527.83 | AH54: =AC54/X54 -> 45.65%
B55: 1. Порески приходи | C55: 1. Порески приходи | D55: 1. Порески приходи | E55: 1. Порески приходи | F55: 1. Порески приходи | G55: 1. Порески приходи | H55: 1. Порески приходи | I55: 1. Порески приходи | J55: 1. Порески приходи | K55: 1. Порески приходи | L55: 1. Порески приходи | M55: 1. Порески приходи | N55: 1. Порески приходи | O55: 1. Порески приходи | P55: 1. Порески приходи | Q55: 1. Порески приходи | R55: 1. Порески приходи | S55: 71 | T55: 71 | U55: 71 | V55: 71 | W55: 71 | X55: =SUM(X56:AB58) -> 403,114,249.00 | AC55: =SUM(AC56:AG58) -> 176,427,703.74 | AH55: 43.77%
B56: 1.1. Порез на доходак, добит и капиталне добитке | C56: 1.1. Порез на доходак, добит и капиталне добитке | D56: 1.1. Порез на доходак, добит и капиталне добитке | E56: 1.1. Порез на доходак, добит и капиталне добитке | F56: 1.1. Порез на доходак, добит и капиталне добитке | G56: 1.1. Порез на доходак, добит и капиталне добитке | H56: 1.1. Порез на доходак, добит и капиталне добитке | I56: 1.1. Порез на доходак, добит и капиталне добитке | J56: 1.1. Порез на доходак, добит и капиталне добитке | K56: 1.1. Порез на доходак, добит и капиталне добитке | L56: 1.1. Порез на доходак, добит и капиталне добитке | M56: 1.1. Порез на доходак, добит и капиталне добитке | N56: 1.1. Порез на доходак, добит и капиталне добитке | O56: 1.1. Порез на доходак, добит и капиталне добитке | P56: 1.1. Порез на доходак, добит и капиталне добитке | Q56: 1.1. Порез на доходак, добит и капиталне добитке | R56: 1.1. Порез на доходак, добит и капиталне добитке | S56: 711 | T56: 711 | U56: 711 | V56: 711 | W56: 711 | X56: 312,853,578.00 | AC56: 143,287,823.80 | AH56: =AC56/X56 -> 45.80%
B57: 1.2. Порез на добра и услуге | C57: 1.2. Порез на добра и услуге | D57: 1.2. Порез на добра и услуге | E57: 1.2. Порез на добра и услуге | F57: 1.2. Порез на добра и услуге | G57: 1.2. Порез на добра и услуге | H57: 1.2. Порез на добра и услуге | I57: 1.2. Порез на добра и услуге | J57: 1.2. Порез на добра и услуге | K57: 1.2. Порез на добра и услуге | L57: 1.2. Порез на добра и услуге | M57: 1.2. Порез на добра и услуге | N57: 1.2. Порез на добра и услуге | O57: 1.2. Порез на добра и услуге | P57: 1.2. Порез на добра и услуге | Q57: 1.2. Порез на добра и услуге | R57: 1.2. Порез на добра и услуге | S57: 714 | T57: 714 | U57: 714 | V57: 714 | W57: 714 | X57: 18,420,000.00 | AC57: 7,162,047.58 | AH57: 38.88%
B58: 1.3. Остали порески приходи | C58: 1.3. Остали порески приходи | D58: 1.3. Остали порески приходи | E58: 1.3. Остали порески приходи | F58: 1.3. Остали порески приходи | G58: 1.3. Остали порески приходи | H58: 1.3. Остали порески приходи | I58: 1.3. Остали порески приходи | J58: 1.3. Остали порески приходи | K58: 1.3. Остали порески приходи | L58: 1.3. Остали порески приходи | M58: 1.3. Остали порески приходи | N58: 1.3. Остали порески приходи | O58: 1.3. Остали порески приходи | P58: 1.3. Остали порески приходи | Q58: 1.3. Остали порески приходи | R58: 1.3. Остали порески приходи | S58: 712+713+716 +719 | T58: 712+713+716+719 | U58: 712+713+716+719 | V58: 712+713+716+719 | W58: 712+713+716+719 | X58: 71,840,671.00 | AC58: 25,977,832.36 | AH58: 36.16%
B59: 2. Непорески приходи, од чега: | C59: 2. Непорески приходи, од чега: | D59: 2. Непорески приходи, од чега: | E59: 2. Непорески приходи, од чега: | F59: 2. Непорески приходи, од чега: | G59: 2. Непорески приходи, од чега: | H59: 2. Непорески приходи, од чега: | I59: 2. Непорески приходи, од чега: | J59: 2. Непорески приходи, од чега: | K59: 2. Непорески приходи, од чега: | L59: 2. Непорески приходи, од чега: | M59: 2. Непорески приходи, од чега: | N59: 2. Непорески приходи, од чега: | O59: 2. Непорески приходи, од чега: | P59: 2. Непорески приходи, од чега: | Q59: 2. Непорески приходи, од чега: | R59: 2. Непорески приходи, од чега: | S59: 74 | T59: 74 | U59: 74 | V59: 74 | W59: 74 | X59: 47,763,765.00 | AC59: 17,210,362.53 | AH59: 36.03%
B60: – наплаћене камате | C60: – наплаћене камате | D60: – наплаћене камате | E60: – наплаћене камате | F60: – наплаћене камате | G60: – наплаћене камате | H60: – наплаћене камате | I60: – наплаћене камате | J60: – наплаћене камате | K60: – наплаћене камате | L60: – наплаћене камате | M60: – наплаћене камате | N60: – наплаћене камате | O60: – наплаћене камате | P60: – наплаћене камате | Q60: – наплаћене камате | R60: – наплаћене камате | S60: 7411 | T60: 7411 | U60: 7411 | V60: 7411 | W60: 7411 | X60: 3,500,000.00 | AC60: 1,787,625.34 | AH60: 51.08%
B61: – накнада за коришћење простора и грађевинског земљишта | C61: – накнада за коришћење простора и грађевинског земљишта | D61: – накнада за коришћење простора и грађевинског земљишта | E61: – накнада за коришћење простора и грађевинског земљишта | F61: – накнада за коришћење простора и грађевинског земљишта | G61: – накнада за коришћење простора и грађевинског земљишта | H61: – накнада за коришћење простора и грађевинског земљишта | I61: – накнада за коришћење простора и грађевинског земљишта | J61: – накнада за коришћење простора и грађевинског земљишта | K61: – накнада за коришћење простора и грађевинског земљишта | L61: – накнада за коришћење простора и грађевинског земљишта | M61: – накнада за коришћење простора и грађевинског земљишта | N61: – накнада за коришћење простора и грађевинског земљишта | O61: – накнада за коришћење простора и грађевинског земљишта | P61: – накнада за коришћење простора и грађевинског земљишта | Q61: – накнада за коришћење простора и грађевинског земљишта | R61: – накнада за коришћење простора и грађевинског земљишта | S61: 7415 | T61: 7415 | U61: 7415 | V61: 7415 | W61: 7415 | X61: 22,499,265.00 | AC61: 4,511,048.93 | AH61: 20.05%
B62: 3. Меморандумске ставке за рефундацију расхода из претходне године | C62: 3. Меморандумске ставке за рефундацију расхода из претходне године | D62: 3. Меморандумске ставке за рефундацију расхода из претходне године | E62: 3. Меморандумске ставке за рефундацију расхода из претходне године | F62: 3. Меморандумске ставке за рефундацију расхода из претходне године | G62: 3. Меморандумске ставке за рефундацију расхода из претходне године | H62: 3. Меморандумске ставке за рефундацију расхода из претходне године | I62: 3. Меморандумске ставке за рефундацију расхода из претходне године | J62: 3. Меморандумске ставке за рефундацију расхода из претходне године | K62: 3. Меморандумске ставке за рефундацију расхода из претходне године | L62: 3. Меморандумске ставке за рефундацију расхода из претходне године | M62: 3. Меморандумске ставке за рефундацију расхода из претходне године | N62: 3. Меморандумске ставке за рефундацију расхода из претходне године | O62: 3. Меморандумске ставке за рефундацију расхода из претходне године | P62: 3. Меморандумске ставке за рефундацију расхода из претходне године | Q62: 3. Меморандумске ставке за рефундацију расхода из претходне године | R62: 3. Меморандумске ставке за рефундацију расхода из претходне године | S62: 772 | T62: 772 | U62: 772 | V62: 772 | W62: 772 | X62: 394,508.00 | AC62: 350,823.53 | AH62: =AC62/X62 -> 88.93%
B63: 4. Донације | C63: 4. Донације | D63: 4. Донације | E63: 4. Донације | F63: 4. Донације | G63: 4. Донације | H63: 4. Донације | I63: 4. Донације | J63: 4. Донације | K63: 4. Донације | L63: 4. Донације | M63: 4. Донације | N63: 4. Донације | O63: 4. Донације | P63: 4. Донације | Q63: 4. Донације | R63: 4. Донације | S63: 731+732 | T63: 731+732 | U63: 731+732 | V63: 731+732 | W63: 731+732 | X63: 0.00 | AC63: 0.00 | AH63: =AC63/X63 -> 
B64: 5. Трансфери | C64: 5. Трансфери | D64: 5. Трансфери | E64: 5. Трансфери | F64: 5. Трансфери | G64: 5. Трансфери | H64: 5. Трансфери | I64: 5. Трансфери | J64: 5. Трансфери | K64: 5. Трансфери | L64: 5. Трансфери | M64: 5. Трансфери | N64: 5. Трансфери | O64: 5. Трансфери | P64: 5. Трансфери | Q64: 5. Трансфери | R64: 5. Трансфери | S64: 733 | T64: 733 | U64: 733 | V64: 733 | W64: 733 | X64: 246,864,903.00 | AC64: 124,739,638.03 | AH64: =AC64/X64 -> 50.53%
B65: 6. Трансфери између корисника на истом нивоу | S65: 78 | X65: 0.00 | AC65: 0.00 | AH65: =AC65/X65 -> 
B66: Примања од продаје нефинанисјске имовине | C66: Примања од продаје нефинанисјске имовине | D66: Примања од продаје нефинанисјске имовине | E66: Примања од продаје нефинанисјске имовине | F66: Примања од продаје нефинанисјске имовине | G66: Примања од продаје нефинанисјске имовине | H66: Примања од продаје нефинанисјске имовине | I66: Примања од продаје нефинанисјске имовине | J66: Примања од продаје нефинанисјске имовине | K66: Примања од продаје нефинанисјске имовине | L66: Примања од продаје нефинанисјске имовине | M66: Примања од продаје нефинанисјске имовине | N66: Примања од продаје нефинанисјске имовине | O66: Примања од продаје нефинанисјске имовине | P66: Примања од продаје нефинанисјске имовине | Q66: Примања од продаје нефинанисјске имовине | R66: Примања од продаје нефинанисјске имовине | S66: 8 | T66: 8 | U66: 8 | V66: 8 | W66: 8 | X66: 4,830,000.00 | AC66: 490,730.00 | AH66: =AC66/X66 -> 10.16%
B67: II. УКУПНИ РАСХОДИ И ИЗДАЦИ | C67: II. УКУПНИ РАСХОДИ И ИЗДАЦИ | D67: II. УКУПНИ РАСХОДИ И ИЗДАЦИ | E67: II. УКУПНИ РАСХОДИ И ИЗДАЦИ | F67: II. УКУПНИ РАСХОДИ И ИЗДАЦИ | G67: II. УКУПНИ РАСХОДИ И ИЗДАЦИ | H67: II. УКУПНИ РАСХОДИ И ИЗДАЦИ | I67: II. УКУПНИ РАСХОДИ И ИЗДАЦИ | J67: II. УКУПНИ РАСХОДИ И ИЗДАЦИ | K67: II. УКУПНИ РАСХОДИ И ИЗДАЦИ | L67: II. УКУПНИ РАСХОДИ И ИЗДАЦИ | M67: II. УКУПНИ РАСХОДИ И ИЗДАЦИ | N67: II. УКУПНИ РАСХОДИ И ИЗДАЦИ | O67: II. УКУПНИ РАСХОДИ И ИЗДАЦИ | P67: II. УКУПНИ РАСХОДИ И ИЗДАЦИ | Q67: II. УКУПНИ РАСХОДИ И ИЗДАЦИ | R67: II. УКУПНИ РАСХОДИ И ИЗДАЦИ | S67: 4+5 | X67: =X68+X78 -> 771,913,325.00 | AC67: =AC68+AC78 -> 291,624,652.15 | AH67: =AC67/X67 -> 37.78%
B68: Текући расходи: | C68: Текући расходи: | D68: Текући расходи: | E68: Текући расходи: | F68: Текући расходи: | G68: Текући расходи: | H68: Текући расходи: | I68: Текући расходи: | J68: Текући расходи: | K68: Текући расходи: | L68: Текући расходи: | M68: Текући расходи: | N68: Текући расходи: | O68: Текући расходи: | P68: Текући расходи: | Q68: Текући расходи: | R68: Текући расходи: | S68: 4 | T68: 4 | U68: 4 | V68: 4 | W68: 4 | X68: =SUM(X69:AB77) -> 624,157,682.00 | AC68: =SUM(AC69:AG77) -> 264,043,132.46 | AH68: 42.30%
B69: 1. Расходи за запослене | C69: 1. Расходи за запослене | D69: 1. Расходи за запослене | E69: 1. Расходи за запослене | F69: 1. Расходи за запослене | G69: 1. Расходи за запослене | H69: 1. Расходи за запослене | I69: 1. Расходи за запослене | J69: 1. Расходи за запослене | K69: 1. Расходи за запослене | L69: 1. Расходи за запослене | M69: 1. Расходи за запослене | N69: 1. Расходи за запослене | O69: 1. Расходи за запослене | P69: 1. Расходи за запослене | Q69: 1. Расходи за запослене | R69: 1. Расходи за запослене | S69: 41 | T69: 41 | U69: 41 | V69: 41 | W69: 41 | X69: 176,894,665.00 | AC69: 92,398,422.86 | AH69: 52.23%
B70: 2. Коришћење услуга и роба | C70: 2. Коришћење услуга и роба | D70: 2. Коришћење услуга и роба | E70: 2. Коришћење услуга и роба | F70: 2. Коришћење услуга и роба | G70: 2. Коришћење услуга и роба | H70: 2. Коришћење услуга и роба | I70: 2. Коришћење услуга и роба | J70: 2. Коришћење услуга и роба | K70: 2. Коришћење услуга и роба | L70: 2. Коришћење услуга и роба | M70: 2. Коришћење услуга и роба | N70: 2. Коришћење услуга и роба | O70: 2. Коришћење услуга и роба | P70: 2. Коришћење услуга и роба | Q70: 2. Коришћење услуга и роба | R70: 2. Коришћење услуга и роба | S70: 42 | T70: 42 | U70: 42 | V70: 42 | W70: 42 | X70: 255,997,549.00 | AC70: 89,296,001.79 | AH70: 34.88%
B71: Употреба основних средстава | S71: 43 | X71: 0.00 | AC71: 0.00 | AH71: =AC71/X71 -> 
B72: 3. Отплата камата | C72: 3. Отплата камата | D72: 3. Отплата камата | E72: 3. Отплата камата | F72: 3. Отплата камата | G72: 3. Отплата камата | H72: 3. Отплата камата | I72: 3. Отплата камата | J72: 3. Отплата камата | K72: 3. Отплата камата | L72: 3. Отплата камата | M72: 3. Отплата камата | N72: 3. Отплата камата | O72: 3. Отплата камата | P72: 3. Отплата камата | Q72: 3. Отплата камата | R72: 3. Отплата камата | S72: 44 | T72: 44 | U72: 44 | V72: 44 | W72: 44 | X72: 200,000.00 | AC72: 33,033.45 | AH72: 16.52%
B73: 4. Субвенције | C73: 4. Субвенције | D73: 4. Субвенције | E73: 4. Субвенције | F73: 4. Субвенције | G73: 4. Субвенције | H73: 4. Субвенције | I73: 4. Субвенције | J73: 4. Субвенције | K73: 4. Субвенције | L73: 4. Субвенције | M73: 4. Субвенције | N73: 4. Субвенције | O73: 4. Субвенције | P73: 4. Субвенције | Q73: 4. Субвенције | R73: 4. Субвенције | S73: 45 | T73: 45 | U73: 45 | V73: 45 | W73: 45 | X73: 42,969,060.00 | AC73: 14,581,384.96 | AH73: 33.93%
B74: 5. Издаци за социјалну заштиту | C74: 5. Издаци за социјалну заштиту | D74: 5. Издаци за социјалну заштиту | E74: 5. Издаци за социјалну заштиту | F74: 5. Издаци за социјалну заштиту | G74: 5. Издаци за социјалну заштиту | H74: 5. Издаци за социјалну заштиту | I74: 5. Издаци за социјалну заштиту | J74: 5. Издаци за социјалну заштиту | K74: 5. Издаци за социјалну заштиту | L74: 5. Издаци за социјалну заштиту | M74: 5. Издаци за социјалну заштиту | N74: 5. Издаци за социјалну заштиту | O74: 5. Издаци за социјалну заштиту | P74: 5. Издаци за социјалну заштиту | Q74: 5. Издаци за социјалну заштиту | R74: 5. Издаци за социјалну заштиту | S74: 47 | T74: 47 | U74: 47 | V74: 47 | W74: 47 | X74: 56,347,718.00 | AC74: 32,066,409.53 | AH74: 56.91%
B75: 6. Остали расходи | C75: 6. Остали расходи | D75: 6. Остали расходи | E75: 6. Остали расходи | F75: 6. Остали расходи | G75: 6. Остали расходи | H75: 6. Остали расходи | I75: 6. Остали расходи | J75: 6. Остали расходи | K75: 6. Остали расходи | L75: 6. Остали расходи | M75: 6. Остали расходи | N75: 6. Остали расходи | O75: 6. Остали расходи | P75: 6. Остали расходи | Q75: 6. Остали расходи | R75: 6. Остали расходи | S75: 48+49 | T75: 48+49 | U75: 48+49 | V75: 48+49 | W75: 48+49 | X75: 34,783,848.00 | AC75: 13,460,167.25 | AH75: 38.70%
B76: 7. Трансфери и дотације | C76: 7. Текући трансфери и дотације | D76: 7. Текући трансфери и дотације | E76: 7. Текући трансфери и дотације | F76: 7. Текући трансфери и дотације | G76: 7. Текући трансфери и дотације | H76: 7. Текући трансфери и дотације | I76: 7. Текући трансфери и дотације | J76: 7. Текући трансфери и дотације | K76: 7. Текући трансфери и дотације | L76: 7. Текући трансфери и дотације | M76: 7. Текући трансфери и дотације | N76: 7. Текући трансфери и дотације | O76: 7. Текући трансфери и дотације | P76: 7. Текући трансфери и дотације | Q76: 7. Текући трансфери и дотације | R76: 7. Текући трансфери и дотације | S76: 463+464 | T76: 4631+4641 | U76: 4631+4641 | V76: 4631+4641 | W76: 4631+4641 | X76: 56,200,000.00 | AC76: 22,197,072.65 | AH76: 39.50%
B77: 8. Остале донације, дотације и трансфери | S77: 465 | X77: 764,842.00 | AC77: 10,639.97 | AH77: =AC77/X77 -> 1.39%
B78: Издаци за нефинансијску имовину | C78: Издаци за нефинансијску имовину | D78: Издаци за нефинансијску имовину | E78: Издаци за нефинансијску имовину | F78: Издаци за нефинансијску имовину | G78: Издаци за нефинансијску имовину | H78: Издаци за нефинансијску имовину | I78: Издаци за нефинансијску имовину | J78: Издаци за нефинансијску имовину | K78: Издаци за нефинансијску имовину | L78: Издаци за нефинансијску имовину | M78: Издаци за нефинансијску имовину | N78: Издаци за нефинансијску имовину | O78: Издаци за нефинансијску имовину | P78: Издаци за нефинансијску имовину | Q78: Издаци за нефинансијску имовину | R78: Издаци за нефинансијску имовину | S78: 5 | T78: 5 | U78: 5 | V78: 5 | W78: 5 | X78: 147,755,643.00 | AC78: 27,581,519.69 | AH78: 18.67%
B79: III. БУЏЕТСКИ СУФИЦИТ (БУЏЕТСКИ ДЕФИЦИТ) (I–II) | C79: III. БУЏЕТСКИ СУФИЦИТ (БУЏЕТСКИ ДЕФИЦИТ) (I–II) | D79: III. БУЏЕТСКИ СУФИЦИТ (БУЏЕТСКИ ДЕФИЦИТ) (I–II) | E79: III. БУЏЕТСКИ СУФИЦИТ (БУЏЕТСКИ ДЕФИЦИТ) (I–II) | F79: III. БУЏЕТСКИ СУФИЦИТ (БУЏЕТСКИ ДЕФИЦИТ) (I–II) | G79: III. БУЏЕТСКИ СУФИЦИТ (БУЏЕТСКИ ДЕФИЦИТ) (I–II) | H79: III. БУЏЕТСКИ СУФИЦИТ (БУЏЕТСКИ ДЕФИЦИТ) (I–II) | I79: III. БУЏЕТСКИ СУФИЦИТ (БУЏЕТСКИ ДЕФИЦИТ) (I–II) | J79: III. БУЏЕТСКИ СУФИЦИТ (БУЏЕТСКИ ДЕФИЦИТ) (I–II) | K79: III. БУЏЕТСКИ СУФИЦИТ (БУЏЕТСКИ ДЕФИЦИТ) (I–II) | L79: III. БУЏЕТСКИ СУФИЦИТ (БУЏЕТСКИ ДЕФИЦИТ) (I–II) | M79: III. БУЏЕТСКИ СУФИЦИТ (БУЏЕТСКИ ДЕФИЦИТ) (I–II) | N79: III. БУЏЕТСКИ СУФИЦИТ (БУЏЕТСКИ ДЕФИЦИТ) (I–II) | O79: III. БУЏЕТСКИ СУФИЦИТ (БУЏЕТСКИ ДЕФИЦИТ) (I–II) | P79: III. БУЏЕТСКИ СУФИЦИТ (БУЏЕТСКИ ДЕФИЦИТ) (I–II) | Q79: III. БУЏЕТСКИ СУФИЦИТ (БУЏЕТСКИ ДЕФИЦИТ) (I–II) | R79: III. БУЏЕТСКИ СУФИЦИТ (БУЏЕТСКИ ДЕФИЦИТ) (I–II) | S79: (7+8) – (4+5) | T79: (7+8) – (4+5) | U79: (7+8) – (4+5) | V79: (7+8) – (4+5) | W79: (7+8) – (4+5) | X79: =X53-X67 -> -68,945,900.00 | AC79: =AC53-AC67 -> 27,594,605.68 | AH79: -40.02%
B80: IV. Издаци за набавку финансијске имовине | C80: IV. Издаци за набавку финансијске имовине | D80: IV. Издаци за набавку финансијске имовине | E80: IV. Издаци за набавку финансијске имовине | F80: IV. Издаци за набавку финансијске имовине | G80: IV. Издаци за набавку финансијске имовине | H80: IV. Издаци за набавку финансијске имовине | I80: IV. Издаци за набавку финансијске имовине | J80: IV. Издаци за набавку финансијске имовине | K80: IV. Издаци за набавку финансијске имовине | L80: IV. Издаци за набавку финансијске имовине | M80: IV. Издаци за набавку финансијске имовине | N80: IV. Издаци за набавку финансијске имовине | O80: IV. Издаци за набавку финансијске имовине | P80: IV. Издаци за набавку финансијске имовине | Q80: IV. Издаци за набавку финансијске имовине | R80: IV. Издаци за набавку финансијске имовине | S80: 62 | T80: 62 | U80: 62 | V80: 62 | W80: 62
B81: V. Отплата главнице | C81: V. Отплата главнице | D81: V. Отплата главнице | E81: V. Отплата главнице | F81: V. Отплата главнице | G81: V. Отплата главнице | H81: V. Отплата главнице | I81: V. Отплата главнице | J81: V. Отплата главнице | K81: V. Отплата главнице | L81: V. Отплата главнице | M81: V. Отплата главнице | N81: V. Отплата главнице | O81: V. Отплата главнице | P81: V. Отплата главнице | Q81: V. Отплата главнице | R81: V. Отплата главнице | S81: 61 | T81: 61 | U81: 61 | V81: 61 | W81: 61 | X81: =X82+X85 -> 0.00 | AC81: =AC82+AC85 -> 0.00 | AH81: =AC81/X81 -> 
B82: 1. Отплата главнице домаћим кредиторима | C82: 1. Отплата главнице домаћим кредиторима | D82: 1. Отплата главнице домаћим кредиторима | E82: 1. Отплата главнице домаћим кредиторима | F82: 1. Отплата главнице домаћим кредиторима | G82: 1. Отплата главнице домаћим кредиторима | H82: 1. Отплата главнице домаћим кредиторима | I82: 1. Отплата главнице домаћим кредиторима | J82: 1. Отплата главнице домаћим кредиторима | K82: 1. Отплата главнице домаћим кредиторима | L82: 1. Отплата главнице домаћим кредиторима | M82: 1. Отплата главнице домаћим кредиторима | N82: 1. Отплата главнице домаћим кредиторима | O82: 1. Отплата главнице домаћим кредиторима | P82: 1. Отплата главнице домаћим кредиторима | Q82: 1. Отплата главнице домаћим кредиторима | R82: 1. Отплата главнице домаћим кредиторима | S82: 611 | T82: 611 | U82: 611 | V82: 611 | W82: 611 | X82: =SUM(X83:AB84) -> 0.00 | AC82: =SUM(AC83:AG84) -> 0.00 | AH82: =AC82/X82 -> 
B83: 1.1. Отплата главнице домаћим јавним финансијским институцијама и пословним банкама | C83: 1.1. Отплата главнице домаћим јавним финансијским институцијама и пословним банкама | D83: 1.1. Отплата главнице домаћим јавним финансијским институцијама и пословним банкама | E83: 1.1. Отплата главнице домаћим јавним финансијским институцијама и пословним банкама | F83: 1.1. Отплата главнице домаћим јавним финансијским институцијама и пословним банкама | G83: 1.1. Отплата главнице домаћим јавним финансијским институцијама и пословним банкама | H83: 1.1. Отплата главнице домаћим јавним финансијским институцијама и пословним банкама | I83: 1.1. Отплата главнице домаћим јавним финансијским институцијама и пословним банкама | J83: 1.1. Отплата главнице домаћим јавним финансијским институцијама и пословним банкама | K83: 1.1. Отплата главнице домаћим јавним финансијским институцијама и пословним банкама | L83: 1.1. Отплата главнице домаћим јавним финансијским институцијама и пословним банкама | M83: 1.1. Отплата главнице домаћим јавним финансијским институцијама и пословним банкама | N83: 1.1. Отплата главнице домаћим јавним финансијским институцијама и пословним банкама | O83: 1.1. Отплата главнице домаћим јавним финансијским институцијама и пословним банкама | P83: 1.1. Отплата главнице домаћим јавним финансијским институцијама и пословним банкама | Q83: 1.1. Отплата главнице домаћим јавним финансијским институцијама и пословним банкама | R83: 1.1. Отплата главнице домаћим јавним финансијским институцијама и пословним банкама | S83: 6113 + 6114 | T83: 6113 + 6114 | U83: 6113 + 6114 | V83: 6113 + 6114 | W83: 6113 + 6114 | X83: 0.00 | AC83: 0.00 | AH83: =AC83/X83 -> 
B84: 1.2. Отплата главнице осталим кредиторима | C84: 1.2. Отплата главнице осталим кредиторима | D84: 1.2. Отплата главнице осталим кредиторима | E84: 1.2. Отплата главнице осталим кредиторима | F84: 1.2. Отплата главнице осталим кредиторима | G84: 1.2. Отплата главнице осталим кредиторима | H84: 1.2. Отплата главнице осталим кредиторима | I84: 1.2. Отплата главнице осталим кредиторима | J84: 1.2. Отплата главнице осталим кредиторима | K84: 1.2. Отплата главнице осталим кредиторима | L84: 1.2. Отплата главнице осталим кредиторима | M84: 1.2. Отплата главнице осталим кредиторима | N84: 1.2. Отплата главнице осталим кредиторима | O84: 1.2. Отплата главнице осталим кредиторима | P84: 1.2. Отплата главнице осталим кредиторима | Q84: 1.2. Отплата главнице осталим кредиторима | R84: 1.2. Отплата главнице осталим кредиторима | S84: 6111 + 6112 + 6115 + 6116 + 6117 + 6118 + 6119 | T84: 6111 + 6112 + 6115 + 6116 + 6117 + 6118 + 6119 | U84: 6111 + 6112 + 6115 + 6116 + 6117 + 6118 + 6119 | V84: 6111 + 6112 + 6115 + 6116 + 6117 + 6118 + 6119 | W84: 6111 + 6112 + 6115 + 6116 + 6117 + 6118 + 6119 | AH84: ='član 4'!E35 -> 
B85: 2. Отплата главнице страним кредиторима | C85: 2. Отплата главнице страним кредиторима | D85: 2. Отплата главнице страним кредиторима | E85: 2. Отплата главнице страним кредиторима | F85: 2. Отплата главнице страним кредиторима | G85: 2. Отплата главнице страним кредиторима | H85: 2. Отплата главнице страним кредиторима | I85: 2. Отплата главнице страним кредиторима | J85: 2. Отплата главнице страним кредиторима | K85: 2. Отплата главнице страним кредиторима | L85: 2. Отплата главнице страним кредиторима | M85: 2. Отплата главнице страним кредиторима | N85: 2. Отплата главнице страним кредиторима | O85: 2. Отплата главнице страним кредиторима | P85: 2. Отплата главнице страним кредиторима | Q85: 2. Отплата главнице страним кредиторима | R85: 2. Отплата главнице страним кредиторима | S85: 612 | T85: 612 | U85: 612 | V85: 612 | W85: 612 | AH85: ='član 4'!E36 -> 
B86: Б. УКУПНИ ФИСКАЛНИ ДЕФИЦИТ (III-IV-V) | C86: Б. УКУПНИ ФИСКАЛНИ ДЕФИЦИТ (III-IV-V) | D86: Б. УКУПНИ ФИСКАЛНИ ДЕФИЦИТ (III-IV-V) | E86: Б. УКУПНИ ФИСКАЛНИ ДЕФИЦИТ (III-IV-V) | F86: Б. УКУПНИ ФИСКАЛНИ ДЕФИЦИТ (III-IV-V) | G86: Б. УКУПНИ ФИСКАЛНИ ДЕФИЦИТ (III-IV-V) | H86: Б. УКУПНИ ФИСКАЛНИ ДЕФИЦИТ (III-IV-V) | I86: Б. УКУПНИ ФИСКАЛНИ ДЕФИЦИТ (III-IV-V) | J86: Б. УКУПНИ ФИСКАЛНИ ДЕФИЦИТ (III-IV-V) | K86: Б. УКУПНИ ФИСКАЛНИ ДЕФИЦИТ (III-IV-V) | L86: Б. УКУПНИ ФИСКАЛНИ ДЕФИЦИТ (III-IV-V) | M86: Б. УКУПНИ ФИСКАЛНИ ДЕФИЦИТ (III-IV-V) | N86: Б. УКУПНИ ФИСКАЛНИ ДЕФИЦИТ (III-IV-V) | O86: Б. УКУПНИ ФИСКАЛНИ ДЕФИЦИТ (III-IV-V) | P86: Б. УКУПНИ ФИСКАЛНИ ДЕФИЦИТ (III-IV-V) | Q86: Б. УКУПНИ ФИСКАЛНИ ДЕФИЦИТ (III-IV-V) | R86: Б. УКУПНИ ФИСКАЛНИ ДЕФИЦИТ (III-IV-V) | X86: =X79-X80-X81 -> -68,945,900.00 | AC86: =AC79-AC80-AC81 -> 27,594,605.68 | AH86: =AC86/X86 -> -40.02%
B87: В. РАЧУН ФИНАНСИРАЊА | C87: В. РАЧУН ФИНАНСИРАЊА | D87: В. РАЧУН ФИНАНСИРАЊА | E87: В. РАЧУН ФИНАНСИРАЊА | F87: В. РАЧУН ФИНАНСИРАЊА | G87: В. РАЧУН ФИНАНСИРАЊА | H87: В. РАЧУН ФИНАНСИРАЊА | I87: В. РАЧУН ФИНАНСИРАЊА | J87: В. РАЧУН ФИНАНСИРАЊА | K87: В. РАЧУН ФИНАНСИРАЊА | L87: В. РАЧУН ФИНАНСИРАЊА | M87: В. РАЧУН ФИНАНСИРАЊА | N87: В. РАЧУН ФИНАНСИРАЊА | O87: В. РАЧУН ФИНАНСИРАЊА | P87: В. РАЧУН ФИНАНСИРАЊА | Q87: В. РАЧУН ФИНАНСИРАЊА | R87: В. РАЧУН ФИНАНСИРАЊА | X87: =IF(OR(ISBLANK('član 4'!C38),'član 4'!C38=0),"",'član 4'!C38) ->  | AC87: =IF(OR(ISBLANK('član 4'!D38),'član 4'!D38=0),"",'član 4'!D38) ->  | AH87: ='član 4'!E38 -> 
B88: VI. Примања по основу продаје финансијске имовине | C88: VI. Примања по основу продаје финансијске имовине | D88: VI. Примања по основу продаје финансијске имовине | E88: VI. Примања по основу продаје финансијске имовине | F88: VI. Примања по основу продаје финансијске имовине | G88: VI. Примања по основу продаје финансијске имовине | H88: VI. Примања по основу продаје финансијске имовине | I88: VI. Примања по основу продаје финансијске имовине | J88: VI. Примања по основу продаје финансијске имовине | K88: VI. Примања по основу продаје финансијске имовине | L88: VI. Примања по основу продаје финансијске имовине | M88: VI. Примања по основу продаје финансијске имовине | N88: VI. Примања по основу продаје финансијске имовине | O88: VI. Примања по основу продаје финансијске имовине | P88: VI. Примања по основу продаје финансијске имовине | Q88: VI. Примања по основу продаје финансијске имовине | R88: VI. Примања по основу продаје финансијске имовине | S88: 92 | T88: 92 | U88: 92 | V88: 92 | W88: 92 | AH88: ='član 4'!E39 -> 
B89: VII. Примања од задуживања | C89: VII. Примања од задуживања | D89: VII. Примања од задуживања | E89: VII. Примања од задуживања | F89: VII. Примања од задуживања | G89: VII. Примања од задуживања | H89: VII. Примања од задуживања | I89: VII. Примања од задуживања | J89: VII. Примања од задуживања | K89: VII. Примања од задуживања | L89: VII. Примања од задуживања | M89: VII. Примања од задуживања | N89: VII. Примања од задуживања | O89: VII. Примања од задуживања | P89: VII. Примања од задуживања | Q89: VII. Примања од задуживања | R89: VII. Примања од задуживања | S89: 91 | T89: 91 | U89: 91 | V89: 91 | W89: 91 | X89: =SUM(X90) -> 0.00 | AC89: =SUM(AC90) -> 0.00 | AH89: ='član 4'!E40 -> 
B90: 1. Примања од домаћих задуживања | C90: 1. Примања од домаћих задуживања | D90: 1. Примања од домаћих задуживања | E90: 1. Примања од домаћих задуживања | F90: 1. Примања од домаћих задуживања | G90: 1. Примања од домаћих задуживања | H90: 1. Примања од домаћих задуживања | I90: 1. Примања од домаћих задуживања | J90: 1. Примања од домаћих задуживања | K90: 1. Примања од домаћих задуживања | L90: 1. Примања од домаћих задуживања | M90: 1. Примања од домаћих задуживања | N90: 1. Примања од домаћих задуживања | O90: 1. Примања од домаћих задуживања | P90: 1. Примања од домаћих задуживања | Q90: 1. Примања од домаћих задуживања | R90: 1. Примања од домаћих задуживања | S90: 911 | T90: 911 | U90: 911 | V90: 911 | W90: 911 | X90: =SUM(X91:AB92) -> 0.00 | AC90: =SUM(AC91:AG92) -> 0.00 | AH90: ='član 4'!E41 -> 
B91: 1.1. Задуживање код јавних финансијских институција и пословних банака | C91: 1.1. Задуживање код јавних финансијских институција и пословних банака | D91: 1.1. Задуживање код јавних финансијских институција и пословних банака | E91: 1.1. Задуживање код јавних финансијских институција и пословних банака | F91: 1.1. Задуживање код јавних финансијских институција и пословних банака | G91: 1.1. Задуживање код јавних финансијских институција и пословних банака | H91: 1.1. Задуживање код јавних финансијских институција и пословних банака | I91: 1.1. Задуживање код јавних финансијских институција и пословних банака | J91: 1.1. Задуживање код јавних финансијских институција и пословних банака | K91: 1.1. Задуживање код јавних финансијских институција и пословних банака | L91: 1.1. Задуживање код јавних финансијских институција и пословних банака | M91: 1.1. Задуживање код јавних финансијских институција и пословних банака | N91: 1.1. Задуживање код јавних финансијских институција и пословних банака | O91: 1.1. Задуживање код јавних финансијских институција и пословних банака | P91: 1.1. Задуживање код јавних финансијских институција и пословних банака | Q91: 1.1. Задуживање код јавних финансијских институција и пословних банака | R91: 1.1. Задуживање код јавних финансијских институција и пословних банака | S91: 9113 + 9114 | T91: 9113 + 9114 | U91: 9113 + 9114 | V91: 9113 + 9114 | W91: 9113 + 9114 | AH91: ='član 4'!E42 -> 
B92: 1.2. Задуживање код осталих кредитора | C92: 1.2. Задуживање код осталих кредитора | D92: 1.2. Задуживање код осталих кредитора | E92: 1.2. Задуживање код осталих кредитора | F92: 1.2. Задуживање код осталих кредитора | G92: 1.2. Задуживање код осталих кредитора | H92: 1.2. Задуживање код осталих кредитора | I92: 1.2. Задуживање код осталих кредитора | J92: 1.2. Задуживање код осталих кредитора | K92: 1.2. Задуживање код осталих кредитора | L92: 1.2. Задуживање код осталих кредитора | M92: 1.2. Задуживање код осталих кредитора | N92: 1.2. Задуживање код осталих кредитора | O92: 1.2. Задуживање код осталих кредитора | P92: 1.2. Задуживање код осталих кредитора | Q92: 1.2. Задуживање код осталих кредитора | R92: 1.2. Задуживање код осталих кредитора | S92: 9111 + 9112 + 9115 + 9116 + 9117 + 9118 + 9119 | T92: 9111 + 9112 + 9115 + 9116 + 9117 + 9118 + 9119 | U92: 9111 + 9112 + 9115 + 9116 + 9117 + 9118 + 9119 | V92: 9111 + 9112 + 9115 + 9116 + 9117 + 9118 + 9119 | W92: 9111 + 9112 + 9115 + 9116 + 9117 + 9118 + 9119 | X92: =IF(OR(ISBLANK('član 4'!C43),'član 4'!C43=0),"",'član 4'!C43) ->  | AC92: =IF(OR(ISBLANK('član 4'!D43),'član 4'!D43=0),"",'član 4'!D43) ->  | AH92: ='član 4'!E43 -> 
B93: 2. Примања од иностраног задуживања | C93: 2. Примања од иностраног задуживања | D93: 2. Примања од иностраног задуживања | E93: 2. Примања од иностраног задуживања | F93: 2. Примања од иностраног задуживања | G93: 2. Примања од иностраног задуживања | H93: 2. Примања од иностраног задуживања | I93: 2. Примања од иностраног задуживања | J93: 2. Примања од иностраног задуживања | K93: 2. Примања од иностраног задуживања | L93: 2. Примања од иностраног задуживања | M93: 2. Примања од иностраног задуживања | N93: 2. Примања од иностраног задуживања | O93: 2. Примања од иностраног задуживања | P93: 2. Примања од иностраног задуживања | Q93: 2. Примања од иностраног задуживања | R93: 2. Примања од иностраног задуживања | S93: 912 | T93: 912 | U93: 912 | V93: 912 | W93: 912 | X93: =IF(OR(ISBLANK('član 4'!C44),'član 4'!C44=0),"",'član 4'!C44) ->  | AC93: =IF(OR(ISBLANK('član 4'!D44),'član 4'!D44=0),"",'član 4'!D44) ->  | AH93: ='član 4'!E44 -> 
B94: VIII. ПРЕНЕТА СРЕДСТВА ИЗ ПРЕТХОДНЕ ГОДИНЕ | C94: VIII. НЕТО ФИНАНСИРАЊЕ (IV+V) | D94: VIII. НЕТО ФИНАНСИРАЊЕ (IV+V) | E94: VIII. НЕТО ФИНАНСИРАЊЕ (IV+V) | F94: VIII. НЕТО ФИНАНСИРАЊЕ (IV+V) | G94: VIII. НЕТО ФИНАНСИРАЊЕ (IV+V) | H94: VIII. НЕТО ФИНАНСИРАЊЕ (IV+V) | I94: VIII. НЕТО ФИНАНСИРАЊЕ (IV+V) | J94: VIII. НЕТО ФИНАНСИРАЊЕ (IV+V) | K94: VIII. НЕТО ФИНАНСИРАЊЕ (IV+V) | L94: VIII. НЕТО ФИНАНСИРАЊЕ (IV+V) | M94: VIII. НЕТО ФИНАНСИРАЊЕ (IV+V) | N94: VIII. НЕТО ФИНАНСИРАЊЕ (IV+V) | O94: VIII. НЕТО ФИНАНСИРАЊЕ (IV+V) | P94: VIII. НЕТО ФИНАНСИРАЊЕ (IV+V) | Q94: VIII. НЕТО ФИНАНСИРАЊЕ (IV+V) | R94: VIII. НЕТО ФИНАНСИРАЊЕ (IV+V) | S94: 321311+311712 | X94: 68,945,900.00 | AC94: 24,738,131.19 | AH94: =AC94/X94 -> 35.88%
B95: IX. НЕТО ФИНАНСИРАЊЕ (VI+VIII-V) | C95: VIII. НЕТО ФИНАНСИРАЊЕ (IV+V) | D95: VIII. НЕТО ФИНАНСИРАЊЕ (IV+V) | E95: VIII. НЕТО ФИНАНСИРАЊЕ (IV+V) | F95: VIII. НЕТО ФИНАНСИРАЊЕ (IV+V) | G95: VIII. НЕТО ФИНАНСИРАЊЕ (IV+V) | H95: VIII. НЕТО ФИНАНСИРАЊЕ (IV+V) | I95: VIII. НЕТО ФИНАНСИРАЊЕ (IV+V) | J95: VIII. НЕТО ФИНАНСИРАЊЕ (IV+V) | K95: VIII. НЕТО ФИНАНСИРАЊЕ (IV+V) | L95: VIII. НЕТО ФИНАНСИРАЊЕ (IV+V) | M95: VIII. НЕТО ФИНАНСИРАЊЕ (IV+V) | N95: VIII. НЕТО ФИНАНСИРАЊЕ (IV+V) | O95: VIII. НЕТО ФИНАНСИРАЊЕ (IV+V) | P95: VIII. НЕТО ФИНАНСИРАЊЕ (IV+V) | Q95: VIII. НЕТО ФИНАНСИРАЊЕ (IV+V) | R95: VIII. НЕТО ФИНАНСИРАЊЕ (IV+V) | X95: =X89+X94-X81 -> 68,945,900.00 | AC95: =AC89+AC94-AC81 -> 24,738,131.19 | AH95: =AC95/X95 -> 35.88%
B99: У периоду од 1. јануара до 30. јуна 2025. године, утврђенa су примања по свим изворима финансирања (класа 800000 и 900000) у износу од 490.730,00 динара и укупни издаци (класа 500000 и 600000) у износу од 27.581.519,69 динара.
B104: У периоду од 1. јануара до 30. јуна 2025. године, утврђенa су укупни консолидовани новчани приливи у износу од 319.219.257,83 динара.
B108: У периоду од 1. јануара до 30. јуна 2025. године, утврђени су укупни консолидовани новчани одливи у износу од 291.624.652,15 динара.
B110: Разлике одлива (расхода и издатака) који су евидентирани у главној књизи трезора и одлива (расхода и издатака) Индиректних корисника су евидентиране у поступку усаглашавања извршења буџета општине Владимирци (евиденције главне књиге трезора) и извршења финансијских планова Индиректних корисника. Разлике у извршењима, односно мање извршење расхода и издатака - мањак новчаних одлива са подрачуна Индиректних корисника у односу на пренета средства са рачуна Буџета општине Владимирци су резултирала повећањем салда на подрачунима Индиректних корисника у оквиру консолидованог рачуна трезора. О усаглашавању извршења буџета и извршења Индиректних корисника сачињени су записници који су архивирани у Одсеку за трезор и буџетско рачуноводство општине Владимирци и на основу истих је сачињено консолидовано извршење буџета општине Владимирци у периоду 01.01. - 30.06.2025. године.
B112: У периоду 01.01. - 30.06.2025. године обрачун салда готовине је утврђен на следећи начин:
AD114: У динарима
C115: I Салдо готовине на подрачунима корисника у оквиру Консолидованог рачуна трезора општине Владимирци на дан 01.01.2025. године: | AA115: 67,271,715.44
C116: II Приливи новчаних средстава у периоду 01.01. - 30.06.2025. године: | AA116: 319,219,257.83
C117: III Одливи новчаних средстава у периоду 01.01. - 30.06.2025. године: | AA117: 291,624,652.15
C118: IV Салдо готовине на подрачунима корисника у оквиру Консолидованог рачуна трезора општине Владимирци на дан 30.06.2025. године (I+II-III) | AA118: =AA115+AA116-AA117 -> 94,866,321.12
B120: Структура износа салда готовине од 94.866.321,12 динара 30.06.2025. године по подрачунима који улазе у консолидацију корисника у оквиру консолидованог рачуна трезора Владимирци:
B122: Рачун за извршење буџета општине Владимирци | AA122: 94,477,462.15
B123: Унопс SWISS-PRO Владимирци - нам.сред.од донација 2020 | AA123: 0.00
B124: Општинска Управа - Пројекат ЕЦЕЦ инклузивно образовање | AA124: 0.00
B125: Подрачун наменска средства дечија недеља | AA125: 0.00
B126: Библиотека ,,Диша Атић" Владимирци | AA126: 81,638.45
B127: Библиотека ,,Диша Атић" - подрачун сопствени приходи | AA127: 0.00
B128: Збирно подрачуни Месних Заједница општине Владимирци | AA128: 28,886.11
B129: Туристичка организација општине Владимирци | AA129: 1,826.36
B130: ПУ ,,Сунцокрети" Владимирци | AA130: 276,508.05
B131: ПУ ,,Сунцокрети" - подрачун Ђачки динар | AA131: 0.00
B132: ПУ ,,Сунцокрети" - пројекат ЕЦЕЦ инклузивно образовање | AA132: 0.00
B133: УКУПНО: | AA133: =SUM(AA122:AI132) -> 94,866,321.12
B135: Стање салда готовине од 94.866.321,12 динара чини 42.533.584,25 динара пренетих средстава из претходне године која нису утрошена и 52.332.736,87 динара утврђеног суфицита на начин описан у претходном делу овог Закључка.
B137: У Извештају о извршењу буџета у периоду 1. јануара до 30. јун 2021. године (Образац 5), утврђена је позитивна разлика (суфицит) у износу од 52.202 хиљада динара, између укупних текућих прихода и примања и укупних расхода и издатака. Извештају о извршењу буџета у периоду 1. јануара до 30. јун 2021. године (Образац 5) састављена на основу консолидованих података о извршењима директних корисника Буџета општине Владимирци и саставни је део овог Закључка.
B144: I. ПОСЕБАН ДЕО
B147: Преглед текућих расхода и издатака по организационој, програмској, функционалној и економској класификацији сви по изворима финансирања, као и преглед остварења прихода по изворима финансирања за период 01.01 – 30.06. 2025. године дати су у прилогу и саставни су део овог Закључка.
B165: Извештаји о коришћењу средстава из текуће и сталне буџетске резерве за период 01.01. - 30.06.2025. године, Извештај о донацијама за период 01.01. - 30.06.2025. године, Извештај о кредитном задужењу за период 01.01. - 30.06.2025. године и Извештај о примљеним и датим донацијама за период 01.01. - 30.06.2025. године саставни су делови овог Закључка.
B171: Члан 11.
B172: Закључак о усвајању извршењу буџета општине Владимирци доставити Управи за трезор, по усвајању.
B175: Члан 12.
B176: Овај Закључак објавити у „Службеном листу града Шапца и општина: Богатић, Владимирци и Коцељева”.
B181: СКУПШТИНА ОПШТИНЕ ВЛАДИМИРЦИ
B182: Број: 004523968 2025 07936 001 000 401 118 од 14.11.2025. године
X184: ПРЕДСЕДНИК СКУПШТИНЕ
X187: ________________________
Z188: Раде Ковачевић

Sheet Sheet1
